[Event "AUT Bundesliga 2021-22"]
[Site "Graz"]
[Date "2022.04.23"]
[Round "11.36"]
[White "Halvax, Georg"]
[Black "Horvath, Maria"]
[Result "1-0"]
[ECO "D02"]
[WhiteElo "2405"]
[BlackElo "1989"]
[Annotator "TA"]
[PlyCount "73"]
[EventDate "2021.01.17"]
[EventType "team-tourn"]
[EventCountry "AUT"]
[SourceTitle "playchess.com"]
[Source "ChessBase"]
[SourceQuality "1"]
[TimeControl "40/5400+30:1800+30"]

{[%evp 22,73,29,22,39,27,23,0,-2,-3,11,13,59,48,56,33,39,46,83,85,89,52,97,107,134,114,241,224,230,173,173,176,167,163,167,165,441,424,416,413,568,562,543,524,518,511,491,425,891,849,846,797,732,694]} 1. d4 {[%emt 0:00:04]} d5 {[%emt 0:00:09]} 2. Nf3 {[%emt 0:00:10]} e6 {[%emt 0:00:18]} 3. c4 {[%emt 0:01:13]} a6 {[%emt 0:01:23]} 4. cxd5 {[%emt 0:00:12]} exd5 {[%emt 0:00:13]} 5. Nc3 {[%emt 0:00:39]} Nf6 {[%emt 0:02:03]} 6. Bg5 {[%emt 0:00:18]} Be7 {[%emt 0:00:16]} 7. e3 {[%emt 0:00:35]} h6 {[%emt 0:01:01]} 8. Bh4 {[%emt 0:00:25]} c6 {[%emt 0:06:58]} 9. Qc2 {[%emt 0:01:26]} Nbd7 {[%emt 0:00:18]} 10. Bd3 {[%emt 0:00:38]} O-O {[%emt 0:00:10]} 11. O-O {[%emt 0:03:02]} Re8 {[%emt 0:03:53]} 12. Bg3 {[%emt 0:02:00]} Nf8 {[%emt 0:07:12] D36: Queen's Gambit Declined: Exchange Variation: Main line (5 Bg5 c6 6 Qc2).} 13. Rab1 {[%emt 0:01:30]} Nh5 {[%emt 0:06:04]} 14. b4 {[%emt 0:04:58]} Nxg3 {[%emt 0:00:32] The position is equal.} 15. hxg3 {[%emt 0:00:12] [#]} h5 $146 {[%emt 0:16:23]} ({Predecessor:} 15... Bd6 16. e4 dxe4 17. Nxe4 Bc7 18. Rfe1 Nd7 19. Bc4 Nb6 20. Nf6+ gxf6 21. Qg6+ Kh8 22. Qxh6+ {1-0 (29) Pierbattisti,G-Pieraccini,C Viareggio 1996}) 16. a4 {[%emt 0:02:12]} h4 {[%emt 0:00:09]} (16... Be6 $11 {is more appropriate.}) 17. gxh4 $14 {[%emt 0:00:20]} Bxh4 {[%emt 0:00:05]} 18. b5 {[%emt 0:00:36]} axb5 {[%emt 0:00:28]} 19. axb5 {[%emt 0:00:11]} Re6 {[%emt 0:05:48]} 20. bxc6 {[%emt 0:04:03]} bxc6 {[%emt 0:00:14]} 21. Ra1 {[%emt 0:06:03]} ({Of course not} 21. Nxh4 $6 Qxh4 22. g3 Qh5 $11) 21... Rxa1 {[%emt 0:04:52]} 22. Rxa1 {[%emt 0:00:17][%cal Bf1a1,Ba1a8,Ba8b8][%mdl 32] And now Ra8 would win.} Rh6 {[%emt 0:00:30]} 23. Ra8 {[%emt 0:01:05][%cal Oc3d5] &Bianco is more active.} Qd7 {[%emt 0:11:32] Black cannot hold the game after this.} (23... Be7 $16 24. e4 dxe4 25. Nxe4 (25. Bxe4 Bd6 $16) 25... Qd7) 24. Qb1 {[%emt 0:03:07]} Qc7 {[%emt 0:10:21]} 25. Qb8 {[%emt 0:00:41]} Qxb8 {[%emt 0:00:52]} 26. Rxb8 {[%emt 0:00:02]} Bd7 {[%emt 0:02:48]} 27. Na4 {[%emt 0:05:47]} Be7 {[%emt 0:01:01]} 28. Ne5 $36 {[%emt 0:00:36][%mdl 2048] White is in control.} Rd6 {[%emt 0:04:31]} (28... Be6 {was necessary.} 29. Rb6 (29. Nxc6 Bd6 $16) 29... Bd6) 29. Nc5 $18 {[%emt 0:00:09] Pair of Knights!} Be6 {[%emt 0:00:35]} 30. Nb7 {[%emt 0:00:08] Inhibits Rd8. Threatens to win with Re8.} f6 {[%emt 0:01:32] [#]} 31. Ng6 {[%emt 0:21:12] White is clearly winning.} Rd7 {[%emt 0:00:10] [#]} 32. Nc5 $1 {[%emt 0:00:06]} Bxc5 {[%emt 0:04:36]} 33. dxc5 {[%emt 0:00:07]} Rf7 {[%emt 0:00:19]} 34. f4 {[%emt 0:00:07][%cal Bf2f4,Bf4f5][%mdl 32] Strongly threatening f5.} f5 {[%emt 0:06:23]} (34... Bg4 $142 35. Re8 f5 36. Ne7+ Kh7 37. Nxc6 Nd7) 35. g4 {[%emt 0:00:11]} fxg4 {[%emt 0:01:03]} 36. f5 {[%emt 0:00:09]} Bd7 {[%emt 0:00:30]} 37. Rd8 {[%emt 0:00:08] Weighted Error Value: White=0.12 (very precise) /Black=0.44} 1-0